bitfinex/quotes_BTCUSD_20240730
["timestamp","ask_amount","ask_price","bid_price","bid_amount"]
[1722360701273,0.0087517,66048.0,66038.0,1.53406038]
[1722360701480,0.0087517,66048.0,66038.0,0.35186234]
[1722360701699,0.302821,66046.0,66038.0,0.35186234]
[1722360701905,0.0087517,66048.0,66038.0,0.02536866]
[1722360701906,0.46367001,66039.0,66038.0,0.02536866]
[1722360702154,0.16081901,66039.0,66038.0,0.02536866]
[1722360702339,0.00939401,66039.0,66038.0,0.014]
[1722360702778,0.00939401,66039.0,66038.0,0.02536866]
[1722360703199,0.00939401,66039.0,66038.0,0.46565066]
[1722360703405,0.00939401,66039.0,66038.0,0.76850566]
[1722360703830,0.00939401,66039.0,66038.0,1.2219937]
[1722360704029,0.00939401,66039.0,66038.0,1.2449937]
[1722360704657,0.00939401,66039.0,66038.0,0.48865066]
[1722360704788,0.00939401,66039.0,66038.0,0.01136866]
[1722360705004,0.00939401,66039.0,66038.0,0.01836866]
[1722360705205,0.46367001,66039.0,66038.0,0.007]
[1722360705408,0.46367001,66039.0,66038.0,0.01136866]
[1722360705409,0.16081901,66039.0,66038.0,0.01136866]
[1722360705732,0.302871,66035.0,66029.0,0.0623]
[1722360705949,0.07534716,66033.0,66019.0,0.0617]
[1722360706133,0.302904,66028.0,66020.0,0.302938]
[1722360706494,0.302904,66028.0,66020.0,0.302934]
[1722360706495,0.151455,66026.0,66020.0,0.302934]
[1722360706703,0.30291,66026.0,66019.0,0.0617]
[1722360706918,0.15063304,66037.0,66020.0,0.00064557]
[1722360706919,0.07534716,66034.0,66020.0,0.00064557]
[1722360707124,0.151461,66024.0,66019.0,0.001]
[1722360707344,0.15063304,66033.0,66019.0,0.001]
[1722360707345,0.151467,66021.0,66019.0,0.001]
[1722360707552,0.151465,66022.0,66020.0,0.00064557]
[1722360707785,0.454399,66021.0,66020.0,0.00064557]
[1722360708023,0.151465,66022.0,66020.0,0.00064557]
[1722360708256,0.302915,66026.0,66020.0,0.151468]
[1722360708510,0.15063304,66033.0,66020.0,0.151468]
[1722360708511,0.00090863,66025.0,66020.0,0.00302903]
[1722360708748,0.25154167,66037.0,66019.0,0.001]
[1722360708988,0.25154167,66037.0,66022.0,0.151464]
[1722360708989,0.151455,66026.0,66022.0,0.151464]
[1722360709244,0.00090863,66025.0,66024.0,0.15146]
[1722360709496,0.30377563,66036.0,66028.0,0.302899]
[1722360709729,0.151437,66034.0,66028.0,0.302899]
[1722360709965,0.151437,66034.0,66026.0,0.302909]
[1722360709966,0.151442,66032.0,66027.0,0.151452]
[1722360710174,0.00090863,66031.0,66027.0,0.151452]
[1722360710402,0.00090863,66031.0,66026.0,0.302909]
[1722360710403,0.15235263,66031.0,66026.0,0.151454]
[1722360710619,0.15235263,66031.0,66020.0,0.305935]
[1722360710620,0.00090863,66031.0,66020.0,0.003]
[1722360710823,0.00090863,66034.0,66020.0,0.003]
[1722360711044,0.151457,66025.0,66020.0,0.154469]
[1722360711249,0.151457,66025.0,66021.0,0.01150429]
[1722360711460,0.302904,66028.0,66021.0,0.01150429]
[1722360711666,0.21506158,66191.0,66022.0,0.023]
[1722360711667,0.00090863,66027.0,66022.0,0.023]
[1722360711873,0.00090863,66037.0,66031.0,0.151443]
[1722360712082,0.151435,66035.0,66031.0,0.151443]
[1722360712287,0.0761,66038.0,66032.0,0.01141652]
[1722360712288,0.15234663,66034.0,66032.0,0.01141652]
[1722360712497,0.00090863,66034.0,66033.0,0.151439]
[1722360712710,0.00090863,66038.0,66033.0,0.01140854]
[1722360713028,0.00090863,66038.0,66033.0,0.31428654]
[1722360713171,0.00090863,66038.0,66033.0,0.01140854]
[1722360713674,0.00939401,66039.0,66026.0,0.151454]
[1722360713675,0.302879,66033.0,66026.0,0.151454]
[1722360713932,0.151462,66023.0,66013.0,0.00064557]
[1722360714176,0.302908,66027.0,66014.0,0.151482]
[1722360714177,0.30294,66020.0,66014.0,0.151482]
[1722360714379,0.15147,66020.0,66012.0,0.00064557]
[1722360714587,0.302937,66021.0,66012.0,0.00064557]
[1722360714790,0.0616,66026.0,66011.0,0.0647]
[1722360714791,0.302929,66022.0,66011.0,0.0647]
[1722360714991,0.15147,66020.0,66015.0,0.151479]
[1722360715203,0.151471,66019.0,66015.0,0.151479]
[1722360715421,0.30296,66016.0,66003.0,0.0645]
[1722360715642,0.00090863,66018.0,65997.0,0.276729]
[1722360715643,0.15063304,66015.0,65997.0,0.276729]
[1722360715860,1.060395,66013.0,66012.0,0.014]
[1722360716074,1.060395,66013.0,65997.0,0.0645]
[1722360716075,0.151517,65999.0,65997.0,0.0645]
[1722360716289,0.00090863,65998.0,65996.0,0.151524]
[1722360716498,0.00090863,65998.0,65997.0,0.00064557]
[1722360716711,0.151513,66001.0,65997.0,0.00064557]
[1722360716919,0.151519,65998.0,65997.0,0.00064557]
[1722360717129,0.151519,65998.0,65983.0,0.0627]
[1722360717130,0.303039,65998.0,65983.0,0.0627]
[1722360717353,0.303039,65998.0,65977.0,0.0799]
[1722360717354,0.15154,65989.0,65980.0,0.30312]
[1722360717564,0.151548,65986.0,65979.0,0.303126]
[1722360717771,0.30309,65987.0,65980.0,0.15156]
[1722360717969,0.00090863,65999.0,65982.0,0.151555]
[1722360718215,0.303054,65995.0,65980.0,0.303121]
[1722360718421,0.15154167,65999.0,65978.0,0.15063304]
[1722360718422,0.00090863,65994.0,65978.0,0.15063304]
[1722360718853,0.151541,65989.0,65984.0,0.151551]
[1722360719073,0.151536,65991.0,65986.0,0.151547]
[1722360719300,0.303061,65994.0,65988.0,0.151541]
[1722360719514,0.303062,65993.0,65987.0,0.151544]
[1722360719726,0.45462,65989.0,65988.0,0.00064557]
[1722360719931,0.303075,65991.0,65984.0,0.151551]
[1722360720137,0.303049,65996.0,65985.0,0.00064557]
[1722360720340,0.303049,65996.0,65985.0,0.151548]
[1722360720341,0.151538,65990.0,65985.0,0.151548]
[1722360720523,0.303059,65994.0,65988.0,0.002]
[1722360720760,0.15063304,65998.0,65988.0,0.002]
[1722360720761,0.303053,65995.0,65989.0,0.00064557]
[1722360720967,0.151529,65994.0,65989.0,0.15218557]
[1722360721183,0.151535,65991.0,65989.0,0.00064557]
[1722360721405,0.454614,65990.0,65989.0,0.00064557]
[1722360721620,0.45462,65989.0,65988.0,0.002]
[1722360721853,1.12188,65989.0,65988.0,0.002]
[1722360722065,1.12188,65989.0,65979.0,0.00064557]
[1722360722066,0.151561,65980.0,65979.0,0.00064557]
[1722360722284,0.151561,65980.0,65971.0,0.303161]
[1722360722285,0.0611,65989.0,65978.0,0.151565]
[1722360722499,0.151561,65980.0,65979.0,0.01246148]
[1722360722717,0.454683,65980.0,65979.0,0.01183968]
[1722360722922,0.151556,65982.0,65979.0,0.01183968]
[1722360723137,0.00090863,65981.0,65979.0,0.151563]
[1722360723340,0.00090863,65981.0,65980.0,0.01183169]
[1722360723552,0.364183,65989.0,65980.0,0.01183169]
[1722360723553,0.454668,65982.0,65981.0,0.00064557]
[1722360723984,1.060892,65982.0,65981.0,0.00064557]
[1722360724201,1.060892,65982.0,65963.0,0.10777124]
[1722360724202,0.151584,65970.0,65969.0,0.00064557]
[1722360724412,0.151589,65968.0,65963.0,0.19627024]
[1722360724646,0.15154167,65981.0,65959.0,0.04467124]
[1722360724647,0.378868,65970.0,65959.0,0.04467124]
[1722360724846,0.378868,65970.0,65953.0,0.1125081]
[1722360724847,0.151609,65959.0,65954.0,0.04467124]
[1722360725079,0.151613,65958.0,65955.0,0.00064557]
[1722360725290,0.151616,65956.0,65955.0,0.04482316]
[1722360725492,0.151617,65956.0,65954.0,0.00064557]
[1722360725736,0.15063304,65968.0,65954.0,0.00064557]
[1722360725737,0.151618,65955.0,65954.0,0.00064557]
[1722360726008,0.454861,65954.0,65953.0,0.00083]
[1722360726489,0.758102,65954.0,65953.0,0.00083]
[1722360726728,0.454861,65954.0,65953.0,0.00083]
[1722360728043,0.758102,65954.0,65953.0,0.00083]
[1722360728712,0.758102,65954.0,65953.0,0.00983]
[1722360728902,0.454861,65954.0,65953.0,0.00983]
[1722360729544,0.758102,65954.0,65953.0,0.00983]
[1722360729746,0.454861,65954.0,65953.0,0.00983]
[1722360730194,0.758102,65954.0,65953.0,0.02187752]
[1722360730425,0.758102,65954.0,65953.0,0.00983]
[1722360730675,1.35337604,65954.0,65953.0,0.00983]
[1722360731177,1.05013504,65954.0,65953.0,0.00983]
[1722360731409,0.15162,65954.0,65953.0,0.00983]
[1722360731672,0.454861,65954.0,65953.0,0.00983]
[1722360731906,0.758102,65954.0,65953.0,0.00083]
[1722360732250,0.454861,65954.0,65953.0,0.00083]
[1722360732487,0.758102,65954.0,65953.0,0.00083]
[1722360732738,0.454861,65954.0,65953.0,0.00083]
[1722360733196,0.15162,65954.0,65953.0,0.00083]
[1722360733467,0.758102,65954.0,65953.0,0.00083]
[1722360733704,0.758102,65954.0,65953.0,0.00283]
[1722360733933,0.15162,65954.0,65953.0,0.00283]
[1722360734176,0.0804,65961.0,65953.0,0.00283]
[1722360734443,0.0654,65965.0,65953.0,0.01487752]
[1722360734713,0.15063304,65964.0,65955.0,0.151618]
[1722360734921,0.30410863,65963.0,65955.0,0.303236]
[1722360735121,0.30411263,65963.0,65956.0,0.16363853]
[1722360735363,0.303209,65961.0,65956.0,0.01202353]
[1722360735601,0.45484,65957.0,65956.0,0.01202353]
[1722360735846,0.45484,65957.0,65953.0,0.00083]
[1722360735847,0.758102,65954.0,65953.0,0.00083]
[1722360736087,1.061343,65954.0,65953.0,0.00083]
[1722360736323,1.21197604,65954.0,65953.0,0.00083]
[1722360736591,1.28867604,65954.0,65953.0,0.00083]
[1722360737584,1.65781704,65954.0,65953.0,0.00083]
[1722360737849,1.97105804,65954.0,65953.0,0.00083]
[1722360738118,2.09105804,65954.0,65953.0,0.00083]
[1722360739610,2.55419904,65954.0,65953.0,0.00183]
[1722360739802,2.70489336,65954.0,65953.0,0.00183]
[1722360740514,2.70489336,65954.0,65953.0,0.00083]
[1722360740808,2.70489336,65954.0,65953.0,0.00183]
[1722360741054,2.72789336,65954.0,65953.0,0.00183]
[1722360742087,2.25095804,65954.0,65953.0,0.00183]
[1722360742347,2.25095804,65954.0,65953.0,0.00083]
[1722360742599,2.10835804,65954.0,65953.0,0.00083]
[1722360742873,1.80511704,65954.0,65953.0,0.00183]
[1722360743107,1.62431044,65954.0,65953.0,0.00183]
[1722360743604,1.62431044,65954.0,65953.0,0.00083]
[1722360743836,1.62431044,65954.0,65953.0,0.00183]
[1722360743837,1.77500476,65954.0,65953.0,0.00183]
[1722360744073,1.77500476,65954.0,65953.0,0.00083]
[1722360744324,1.76591136,65954.0,65953.0,0.00083]
[1722360744564,0.90873504,65954.0,65953.0,0.00183]
[1722360745086,1.21197604,65954.0,65953.0,0.00183]
[1722360745827,1.21197604,65954.0,65953.0,0.00083]
[1722360746046,1.21197604,65954.0,65953.0,0.00183]
[1722360746301,1.31197604,65954.0,65953.0,0.00183]
[1722360747510,1.31197604,65954.0,65953.0,0.00083]
[1722360751123,1.061343,65954.0,65953.0,0.00083]
[1722360751999,0.758102,65954.0,65953.0,0.00083]
[1722360752201,0.454861,65954.0,65953.0,0.00083]
[1722360753098,0.1,65962.0,65953.0,0.00383]
[1722360753332,0.151618,65955.0,65954.0,0.00064557]
[1722360753566,0.454855,65955.0,65954.0,0.00064557]
[1722360753810,0.303228,65957.0,65953.0,0.01587752]
[1722360754010,0.15162,65954.0,65953.0,0.00383]
[1722360754219,0.00039337,65955.0,65953.0,0.00383]
[1722360754424,0.15162,65954.0,65953.0,0.00383]
[1722360754641,0.15162,65954.0,65953.0,0.00083]
[1722360755059,0.151618,65955.0,65953.0,0.00083]
[1722360755274,0.01934141,65973.0,65953.0,0.00083]
[1722360755275,0.2733,65982.0,65954.0,0.07599273]
[1722360755483,0.44444115,65975.0,65958.0,0.303222]
[1722360755712,0.303214,65960.0,65959.0,0.00064557]
[1722360755920,1.061249,65960.0,65959.0,0.00064557]
[1722360756170,0.758067,65957.0,65956.0,0.00064557]
[1722360756433,0.454855,65955.0,65954.0,0.00064557]
[1722360756663,1.29526204,65955.0,65954.0,0.00064557]
[1722360756899,1.66479904,65955.0,65954.0,0.00064557]
[1722360757596,1.76479904,65955.0,65954.0,0.00064557]
[1722360757801,1.91549336,65955.0,65954.0,0.00064557]
[1722360758037,2.06803604,65955.0,65954.0,0.00064557]
[1722360758248,2.08803604,65955.0,65954.0,0.00064557]
[1722360758679,1.364584,65954.0,65953.0,0.00083]
[1722360758894,2.36665804,65954.0,65953.0,0.00083]
[1722360759105,2.39041076,65954.0,65953.0,0.00083]
[1722360759319,3.00424608,65954.0,65953.0,0.00083]
[1722360759767,3.00424608,65954.0,65932.0,0.11249286]
[1722360759768,1.823083,65940.0,65939.0,0.00064557]
[1722360760011,1.823083,65940.0,65932.0,0.00064557]
[1722360760012,1.061683,65933.0,65932.0,0.00064557]
[1722360760295,1.31231604,65933.0,65932.0,0.04564271]
[1722360760562,1.31231604,65933.0,65932.0,0.00064557]
[1722360760792,1.31231604,65933.0,65932.0,0.04514732]
[1722360761006,1.061697,65932.0,65931.0,0.04514732]
[1722360761221,1.061697,65932.0,65929.0,0.06836656]
[1722360761222,0.303352,65930.0,65929.0,0.09094022]
[1722360761433,0.151676,65930.0,65929.0,0.0754]
[1722360761857,0.151674,65931.0,65929.0,0.07604557]
[1722360762075,0.455028,65930.0,65929.0,0.08828508]
[1722360762278,0.75838,65930.0,65929.0,0.01223951]
[1722360762487,0.90901304,65930.0,65929.0,0.01223951]
[1722360762693,0.758412,65927.0,65926.0,0.13544198]
[1722360762898,0.151682,65927.0,65926.0,0.13544198]
[1722360763363,0.151685,65926.0,65925.0,0.27884198]
[1722360763558,0.151685,65926.0,65925.0,0.1434]
[1722360763806,0.455055,65926.0,65925.0,0.1434]
[1722360764314,0.758425,65926.0,65925.0,0.1434]
[1722360764559,0.75846,65923.0,65922.0,0.00853]
[1722360764770,1.21247704,65923.0,65922.0,0.00853]
[1722360764974,1.21247704,65923.0,65922.0,0.00917557]
[1722360765188,1.21247704,65923.0,65922.0,0.07705782]
[1722360765398,0.90909304,65923.0,65922.0,0.07644115]
[1722360765603,0.90909304,65923.0,65922.0,0.16543562]
[1722360765604,0.60570904,65923.0,65922.0,0.16543562]
[1722360766004,0.90909304,65923.0,65922.0,0.16543562]
[1722360766213,0.90909304,65923.0,65922.0,0.14232396]
[1722360767030,0.90909304,65923.0,65922.0,0.07443]
[1722360767243,0.455076,65923.0,65922.0,0.14234837]
[1722360767452,0.151688,65925.0,65923.0,0.0829]
[1722360767663,0.151687,65925.0,65924.0,0.00064557]
[1722360767868,0.15063304,65931.0,65924.0,0.00064557]
[1722360768104,0.30230604,65931.0,65930.0,0.09059313]
[1722360768347,0.151671,65932.0,65931.0,0.0787]
[1722360768835,0.455013,65932.0,65931.0,0.07934557]
[1722360769253,0.455013,65932.0,65931.0,0.0787]
[1722360769670,0.455013,65932.0,65931.0,0.07934557]
[1722360770082,0.151668,65934.0,65931.0,0.19194142]
[1722360770290,0.30230104,65934.0,65932.0,0.06800669]
[1722360770529,0.30230104,65934.0,65933.0,0.06865226]
[1722360770757,0.151662,65936.0,65933.0,0.09132116]
[1722360770989,0.44246,65950.0,65935.0,0.1393]
[1722360771196,0.151646,65943.0,65942.0,0.09069403]
[1722360771425,0.151648,65942.0,65941.0,0.06801839]
[1722360771671,0.1392,65954.0,65940.0,0.06803124]
[1722360771672,0.454951,65941.0,65940.0,0.06803124]
[1722360771916,0.454959,65940.0,65939.0,0.06803124]
[1722360772590,0.151656,65939.0,65938.0,0.0453551]
[1722360772988,0.151647,65943.0,65939.0,0.151654]
[1722360773230,0.15063304,65946.0,65936.0,0.06]
[1722360773436,0.151641,65945.0,65943.0,0.0642]
[1722360773645,0.1,65953.0,65943.0,0.0642]
[1722360773855,0.151638,65947.0,65943.0,0.0642]
[1722360774067,0.30327,65948.0,65943.0,0.0642]
[1722360774292,0.303259,65951.0,65944.0,0.00064557]
[1722360774505,0.151635,65948.0,65944.0,0.00064557]
[1722360774923,0.151635,65948.0,65944.0,0.15228857]
[1722360775129,0.151625,65952.0,65945.0,0.303281]
[1722360775331,0.15063304,65953.0,65946.0,0.00064557]
[1722360775547,0.15063304,65953.0,65949.0,0.15163]
[1722360775759,0.30225704,65953.0,65950.0,0.00064557]
[1722360775961,0.151628,65951.0,65947.0,0.151635]
[1722360776168,0.00090863,65952.0,65945.0,0.151639]
[1722360776369,0.00090863,65952.0,65944.0,0.151643]
[1722360776370,0.30326,65950.0,65944.0,0.151643]
[1722360776574,0.151635,65948.0,65944.0,0.151643]
[1722360776783,0.151635,65948.0,65945.0,0.00064557]
[1722360777193,0.151635,65948.0,65944.0,0.003]
[1722360777194,0.151637,65947.0,65944.0,0.003]
[1722360777542,0.303273,65948.0,65943.0,0.215845]
[1722360777543,0.151635,65948.0,65943.0,0.215845]
[1722360777741,0.151637,65947.0,65944.0,0.011]
[1722360778062,0.151637,65947.0,65943.0,0.215845]
[1722360778271,0.151637,65947.0,65943.0,0.215846]
[1722360778507,0.151637,65947.0,65944.0,0.012]
[1722360778508,0.15164,65946.0,65944.0,0.012]
[1722360778715,0.303254,65952.0,65944.0,0.012]
[1722360778716,0.60555704,65945.0,65944.0,0.012]
[1722360779361,0.90884004,65945.0,65944.0,0.012]
[1722360779780,0.15063304,65945.0,65939.0,0.0631]
[1722360780047,0.151653,65940.0,65939.0,0.0631]
[1722360780700,0.151653,65940.0,65939.0,0.06374557]
[1722360781137,0.151645,65944.0,65940.0,0.151652]
[1722360781345,0.151631,65950.0,65946.0,0.0648]
[1722360781557,0.303238,65955.0,65947.0,0.08294557]
[1722360781764,0.151633,65949.0,65947.0,0.08294557]
[1722360781967,0.25063304,65954.0,65947.0,0.233936]
[1722360781968,0.151627,65951.0,65947.0,0.233936]
[1722360782180,0.151634,65948.0,65947.0,0.0823]
[1722360782828,0.25063304,65954.0,65947.0,0.0823]
[1722360783096,0.151632,65949.0,65948.0,0.00064557]
[1722360783312,0.303227,65958.0,65943.0,0.303289]
[1722360783313,0.0613,65964.0,65953.0,0.151622]
[1722360783512,0.303225,65958.0,65954.0,0.00064557]
[1722360783723,0.00090863,65957.0,65951.0,0.303255]
[1722360783928,0.00090863,65957.0,65950.0,0.0769]
[1722360784139,0.00090863,65957.0,65952.0,0.151624]
[1722360784140,0.151616,65956.0,65952.0,0.151624]
[1722360784375,0.00090863,65955.0,65950.0,0.0769]
[1722360784592,0.00090863,65955.0,65954.0,1.199243]
[1722360784807,0.00090863,65974.0,65966.0,0.1379]
[1722360785031,0.52764115,65977.0,65966.0,0.1379]
[1722360785032,0.15158,65972.0,65967.0,0.15159]
[1722360785231,0.15158,65972.0,65966.0,0.441085]
[1722360785232,0.30221204,65972.0,65966.0,0.441085]
[1722360785436,0.00090863,65976.0,65966.0,0.1379]
[1722360785650,0.00090863,65979.0,65971.0,0.15158]
[1722360785862,0.151567,65978.0,65968.0,0.0632]
[1722360786068,0.151561,65980.0,65975.0,0.151571]
[1722360786304,0.45375404,65981.0,65974.0,0.303149]
[1722360786305,0.151564,65979.0,65974.0,0.151573]
[1722360786529,0.151564,65979.0,65972.0,0.151578]
[1722360786530,0.00077422,65978.0,65972.0,0.151578]
[1722360786744,0.21653304,65977.0,65968.0,0.0632]
[1722360786969,0.151583,65971.0,65968.0,0.0632]
[1722360787183,0.21653304,65977.0,65963.0,0.0607]
[1722360787184,0.15063304,65970.0,65963.0,0.0607]
[1722360787399,0.15063304,65970.0,65953.0,0.0607]
[1722360787400,0.15162,65954.0,65953.0,0.0607]
[1722360787609,0.15162,65954.0,65939.0,0.00064557]
[1722360787610,0.454905,65948.0,65947.0,0.0607]
[1722360788028,0.303258,65951.0,65947.0,0.0607]
[1722360788029,0.147,65957.0,65947.0,0.0607]
[1722360788241,0.151629,65951.0,65948.0,0.00064557]
[1722360788448,0.303237,65955.0,65948.0,0.00064557]
[1722360788649,0.151626,65952.0,65948.0,0.01212145]
[1722360788853,0.151623,65953.0,65948.0,0.16375445]
[1722360789077,0.151629,65951.0,65948.0,0.01212145]
[1722360789294,0.303247,65953.0,65948.0,0.01147588]
[1722360789547,0.15063304,65956.0,65949.0,0.00064557]
[1722360789548,0.303237,65955.0,65949.0,0.00064557]
[1722360789753,0.151628,65951.0,65949.0,0.00064557]
[1722360789958,0.151628,65951.0,65950.0,0.01145989]
[1722360790584,0.303248,65953.0,65948.0,0.004]
[1722360790585,0.151625,65952.0,65948.0,0.155634]
[1722360790828,0.15253363,65952.0,65950.0,0.01145989]
[1722360791037,0.151625,65952.0,65951.0,0.00064557]
[1722360791217,0.454875,65952.0,65951.0,0.00064557]
[1722360791432,0.454875,65952.0,65951.0,0.01209746]
[1722360791650,0.454875,65952.0,65950.0,0.008]
[1722360791651,0.294527,65951.0,65950.0,0.008]
[1722360791867,1.8335272,65951.0,65950.0,0.008]
[1722360792081,1.90565099,65951.0,65950.0,0.008]
[1722360792284,2.20890599,65951.0,65950.0,0.008]
[1722360792506,2.20890599,65951.0,65925.0,0.00064557]
[1722360792507,0.151683,65927.0,65925.0,0.00064557]
[1722360792711,0.151685,65926.0,65925.0,0.00064557]
[1722360792916,0.151683,65927.0,65925.0,0.00064557]
[1722360793183,0.2733,65940.0,65922.0,0.00803]
[1722360793184,0.0617,65938.0,65923.0,0.00064557]
[1722360793430,0.151674,65931.0,65925.0,0.151687]
[1722360793673,0.30334,65933.0,65926.0,0.15232957]
[1722360793923,0.303343,65932.0,65926.0,0.15232957]
[1722360794141,0.303313,65939.0,65925.0,0.011]
[1722360794445,0.15063304,65938.0,65926.0,0.00303349]
[1722360794653,0.151665,65935.0,65926.0,0.00303349]
[1722360794873,0.151669,65933.0,65928.0,0.151679]
[1722360795298,0.08,65949.0,65928.0,0.00303337]
[1722360795504,0.303308,65940.0,65931.0,0.151672]
[1722360795715,0.303296,65943.0,65936.0,0.22746]
[1722360795950,0.303297,65942.0,65936.0,0.0758]
[1722360796142,0.303305,65941.0,65936.0,0.0758]
[1722360796361,0.151658,65938.0,65936.0,0.0758]
[1722360796573,0.15063304,65943.0,65936.0,0.0758]
[1722360796574,0.151659,65937.0,65936.0,0.0758]
[1722360796780,0.151654,65940.0,65937.0,0.00064557]
[1722360796992,0.1386,65955.0,65938.0,0.303314]
[1722360797207,0.1386,65955.0,65939.0,0.0602]
[1722360797208,0.15063304,65954.0,65939.0,0.0602]
[1722360797419,0.15063304,65955.0,65940.0,0.02364557]
[1722360797665,0.004,65943.0,65940.0,0.023]
[1722360797874,0.004,65943.0,65939.0,0.0602]
[1722360798075,0.151651,65941.0,65940.0,0.00064557]
[1722360798284,0.454952,65941.0,65940.0,0.00064557]
[1722360798531,0.15063304,65941.0,65932.0,0.00064557]
[1722360798741,0.455007,65933.0,65932.0,0.00064557]
[1722360798951,0.15063304,65933.0,65926.0,0.00064557]
[1722360799155,0.303349,65931.0,65925.0,0.00064557]
[1722360799362,0.151682,65928.0,65925.0,0.00064557]
[1722360799577,0.151681,65928.0,65925.0,0.00064557]
[1722360799816,0.151678,65929.0,65925.0,0.15233257]
[1722360800035,0.151681,65928.0,65924.0,0.217589]
[1722360800239,0.15063304,65933.0,65924.0,0.0659]
[1722360800447,0.151686,65926.0,65923.0,0.00064557]
[1722360800652,0.151686,65926.0,65922.0,0.159723]
[1722360800854,0.151683,65927.0,65923.0,0.00064557]
[1722360801057,0.151683,65927.0,65922.0,0.159723]
[1722360801058,0.151683,65927.0,65922.0,0.00803]
[1722360801264,0.15063304,65933.0,65923.0,0.00064557]
[1722360801488,0.15063304,65932.0,65923.0,0.00064557]
[1722360801691,0.15063304,65932.0,65923.0,0.15233657]
[1722360801919,0.303361,65928.0,65923.0,0.00064557]
[1722360802160,0.151683,65927.0,65925.0,0.014]
[1722360802440,0.151683,65927.0,65926.0,0.00064557]
[1722360802929,0.15063304,65932.0,65923.0,0.00564557]
[1722360802930,0.303346,65932.0,65923.0,0.00564557]
[1722360803171,0.14281301,65945.0,65931.0,0.151672]
[1722360803397,0.151648,65942.0,65932.0,0.00064557]
[1722360803607,0.455007,65933.0,65932.0,0.00064557]
[1722360803810,0.303331,65935.0,65931.0,0.00064557]
[1722360804023,0.151667,65934.0,65931.0,0.00064557]
[1722360804219,0.151666,65935.0,65931.0,0.00064557]
[1722360804427,0.151666,65935.0,65930.0,0.143]
[1722360804428,0.151671,65933.0,65930.0,0.143]
[1722360804853,0.151664,65935.0,65930.0,0.143]
[1722360805064,0.151665,65935.0,65930.0,0.143]
[1722360805284,0.151665,65935.0,65931.0,0.151673]
[1722360805494,0.45396204,65935.0,65924.0,0.0621]
[1722360805699,0.151678,65929.0,65925.0,0.15233157]
[1722360805903,0.151672,65932.0,65926.0,0.303367]
[1722360806105,0.151674,65931.0,65926.0,0.151683]
[1722360806310,0.303347,65931.0,65925.0,0.151686]
[1722360806732,0.151674,65931.0,65926.0,0.151683]
[1722360806935,0.151674,65931.0,65925.0,0.303374]
[1722360806936,0.151674,65931.0,65927.0,0.151682]
[1722360807147,0.303343,65932.0,65927.0,0.151682]
[1722360807148,0.151678,65929.0,65927.0,0.00990902]
[1722360807351,0.303343,65932.0,65927.0,0.00990902]
[1722360807352,0.151676,65930.0,65927.0,0.00990902]
[1722360807552,0.303336,65934.0,65927.0,0.00990902]
[1722360807553,0.455021,65931.0,65927.0,0.00990902]
[1722360807960,0.151674,65931.0,65927.0,0.00990902]
[1722360808162,0.151677,65930.0,65927.0,0.00990902]
[1722360808691,0.151677,65930.0,65928.0,0.01010269]
[1722360808896,0.062,65941.0,65925.0,0.006]
[1722360809126,0.151662,65936.0,65932.0,0.151671]
[1722360809327,0.15166,65937.0,65932.0,0.151669]
[1722360809468,0.15166,65937.0,65933.0,0.01006267]
[1722360809669,0.15063304,65940.0,65933.0,0.01006267]
[1722360809881,0.08261301,65945.0,65939.0,0.367607]
[1722360809882,0.00091301,65945.0,65939.0,0.367607]
[1722360810084,0.003,65941.0,65940.0,0.151651]
[1722360810284,0.15255401,65945.0,65940.0,0.01000667]
[1722360810285,0.303289,65944.0,65940.0,0.01000667]
[1722360810487,0.303307,65940.0,65931.0,0.303347]
[1722360810696,0.454999,65934.0,65933.0,0.002]
[1722360810903,0.758332,65934.0,65933.0,0.002]
[1722360812102,0.22723304,65939.0,65932.0,0.15167]
[1722360812304,0.22723304,65939.0,65924.0,0.0644]
[1722360812305,0.00091301,65945.0,65934.0,0.1386]
[1722360812512,0.303288,65944.0,65940.0,0.008]
[1722360812718,0.303288,65944.0,65938.0,0.151656]
[1722360812719,0.151649,65942.0,65938.0,0.151656]
[1722360812937,0.15154605,65945.0,65937.0,0.303316]
[1722360813145,0.151651,65941.0,65937.0,0.151659]
[1722360813349,0.15154605,65945.0,65934.0,0.1386]
[1722360813350,0.00091301,65945.0,65934.0,0.1386]
[1722360813553,0.00091301,65945.0,65935.0,0.00303289]
[1722360813792,0.00091301,65945.0,65941.0,0.303299]
[1722360813977,0.00091301,65945.0,65942.0,0.151647]
[1722360814184,0.00091301,65945.0,65943.0,0.151644]
[1722360814394,0.00091301,65945.0,65944.0,0.151643]
[1722360814596,0.00091301,65945.0,65944.0,0.59783]
[1722360814803,0.00091301,65945.0,65944.0,0.901117]
[1722360815046,0.00091301,65945.0,65944.0,0.924117]
[1722360815602,0.00091301,65945.0,65944.0,1.227404]
[1722360815961,0.00091301,65945.0,65944.0,1.237404]
[1722360816960,0.00091301,65945.0,65944.0,1.550691]
[1722360817219,0.00091301,65945.0,65944.0,1.237404]
[1722360817449,0.30419601,65945.0,65944.0,0.01]
[1722360817703,0.45583701,65945.0,65944.0,0.01]
[1722360817921,0.00091301,65945.0,65944.0,0.01]
[1722360818133,0.00091301,65945.0,65944.0,0.01064557]
[1722360818360,0.00091301,65945.0,65944.0,0.02062024]
[1722360818573,0.00091301,65945.0,65944.0,0.01997467]
[1722360820048,0.00091301,65945.0,65944.0,0.17161767]
[1722360820233,0.00091301,65945.0,65944.0,0.47490467]
[1722360820452,0.00091301,65945.0,65944.0,0.77819167]
[1722360820872,0.00091301,65945.0,65944.0,0.80119167]
[1722360821589,0.00091301,65945.0,65944.0,1.10447867]
[1722360821810,0.00091301,65945.0,65944.0,0.94259167]
[1722360822022,0.00091301,65945.0,65944.0,1.24587867]
[1722360823320,0.00091301,65945.0,65944.0,1.40851171]
[1722360823533,0.00091301,65945.0,65944.0,1.71179871]
[1722360823741,0.00091301,65945.0,65944.0,1.83782518]
[1722360823949,0.00091301,65945.0,65944.0,1.82582518]